Cogmind - Beta 9.3 @@@ ROGUE MODE // 2019.12.17 @ 07:08:09 // Winter2019/RPGLIKE Player: spruce (@macklemurr) Result: Destroyed self via exploding Power Conduit Performance ------------- Evolutions (5) 2500 Regions Visited (17) 3400 Robots Destroyed (145) 725 Value Destroyed (5314) 5314 Prototype IDs (242) 4840 Alien Tech Used (0) 0 Bonus (5449) 5449 TOTAL SCORE: 22228 Bonus ------- High Alert Combat Kills 601 Entered Garrisons 800 Used RIF Installer 2000 Aligned with FarCom 300 Met Data Miner 300 Used Data Conduit 3000 Friendly Fire -1552 Cogmind --------- Core Integrity 0/1200 Matter 300/300 Energy 183/240 System Corruption 0% Temperature Cool (22) Movement Flying (34) Location -5/Factory Parts ------- > --- POWER (2) -------- Micro Fission Core Micro Fission Core > --- PROPULSION (3) --- VTOL Module Xenon Bombardment Thruster Nuclear Pulse Thruster > --- UTILITY (7) ------ Advanced Heat Sink Advanced Signal Interpreter Advanced Terrain Scanner Weapon Cycler System Mapper Relay Coupler [Grunt] (58) Relay Coupler [Demolisher] (46) > --- WEAPON (3) ------- Heavy Phase Cannon Heavy Phase Cannon Remote Datajack > --- INVENTORY (5) ---- Variable Charge Gun YOLO Cannon KE Penetrator Field Lobotomy Kit Peak State ------------ > --- POWER ------------ Light Nuclear Core Micro Fission Core > --- PROPULSION ------- Xenon Bombardment Thruster Xenon Bombardment Thruster Nuclear Pulse Thruster > --- UTILITY ---------- Advanced Heat Sink Advanced Signal Interpreter Advanced Terrain Scanner Modified TNC Weapon Cycler System Mapper Relay Coupler [Grunt] > --- WEAPON ----------- YOLO Cannon Field Lobotomy Kit > --- INVENTORY -------- Relay Coupler [Demolisher] Heavy Plasma Cannon Remote Datajack [Rating: 86] Favorites ----------- Power Light Nuclear Core Engine Ion Engine Power Core Light Nuclear Core Propulsion Xenon Bombardment Thruster Wheel Wheel Hover Unit Hover Unit Flight Unit Xenon Bombardment Thruster Utility Modified TNC Device Advanced Heat Sink Processor Modified TNC Hackware Relay Coupler [Grunt] Weapon Heavy EM Shotgun Energy Gun Heavy EM Shotgun Energy Cannon YOLO Cannon Ballistic Gun Autogun Launcher Grenade Launcher Special Weapon Remote Datajack Build | -11 -10 -10 -10 -9 -8 -8 -8 -8 -7 -7 -7 -7 -6 -6 -6 -5 -5 ------- Run | Scr Mat Min Exi Min Mat Gar Mat Gar Fac Gar Fac Gar Fac Low Dat Pro Fac Slots Evolved 11 | 4 . . . . 2 . . . 1 . . 2 1 . . 1 . Power 1 | . . . . . 1 . . . . . . . . . . . . Propulsion 2 | 1 . . . . . . . . 1 . . . . . . . . Utility 6 | 2 . . . . 1 . . . . . . 1 1 . . 1 . Weapon 2 | 1 . . . . . . . . . . . 1 . . . . . Parts Attached 83 | 5 8 1 2 1 19 1 1 7 4 3 1 9 5 1 2 7 6 Power 12 | 1 1 . . . 3 1 1 . . . . 1 2 . . 1 1 Engine 4 | 1 1 . . . 1 1 . . . . . . . . . . . Core 8 | . . . . . 2 . 1 . . . . 1 2 . . 1 1 Reactor . | . . . . . . . . . . . . . . . . . . Propulsion 12 | 2 2 . . . 3 . . . 3 . . . . . . 1 1 Treads . | . . . . . . . . . . . . . . . . . . Leg . | . . . . . . . . . . . . . . . . . . Wheel 2 | 2 . . . . . . . . . . . . . . . . . Hover 1 | . 1 . . . . . . . . . . . . . . . . Flight 9 | . 1 . . . 3 . . . 3 . . . . . . 1 1 Utility 13 | . . . 1 . 6 . . . 1 . . 1 2 . . 1 1 Device 6 | . . . . . 4 . . . 1 . . 1 . . . . . Storage . | . . . . . . . . . . . . . . . . . . Processor 3 | . . . 1 . 2 . . . . . . . . . . . . Hackware 4 | . . . . . . . . . . . . . 2 . . 1 1 Protection . | . . . . . . . . . . . . . . . . . . Artifact . | . . . . . . . . . . . . . . . . . . Weapon 46 | 2 5 1 1 1 7 . . 7 . 3 1 7 1 1 2 4 3 Energy Gun 21 | 2 4 1 . . 6 . . 5 . . . 3 . . . . . Energy Cannon 17 | . . . . 1 1 . . 2 . 2 1 4 1 . . 3 2 Ballistic Gun 1 | . . . . . . . . . . 1 . . . . . . . Ballistic Cannon . | . . . . . . . . . . . . . . . . . . Launcher 1 | . 1 . . . . . . . . . . . . . . . . Special Weapon 6 | . . . 1 . . . . . . . . . . 1 2 1 1 Impact Weapon . | . . . . . . . . . . . . . . . . . . Slashing Weapon . | . . . . . . . . . . . . . . . . . . Piercing Weapon . | . . . . . . . . . . . . . . . . . . Special Melee Weapon . | . . . . . . . . . . . . . . . . . . Unidentified Prototypes 2 | . . . . . 2 . . . . . . . . . . . . Parts Lost 6 | . . . . . 1 . . . . 2 . . . . . 2 1 Power 2 | . . . . . 1 . . . . 1 . . . . . . . Propulsion 2 | . . . . . . . . . . . . . . . . 1 1 Utility 1 | . . . . . . . . . . . . . . . . 1 . Weapon 1 | . . . . . . . . . . 1 . . . . . . . Highest Loss Streak 1 | . . . . . 1 . . . . 1 . . . . . 1 1 Average Slot Usage (%) 83 | . 56 62 62 50 79 100 100 98 98 92 81 90 92 92 92 89 94 Engine 7 | . 11 12 12 12 9 10 10 10 9 9 9 7 2 . . . . Core 7 | . . . . . 7 10 10 10 9 6 . 6 11 14 14 13 13 Hover 1 | . 8 12 3 . . . . . . . . . . . . . . Flight 17 | . 4 12 12 12 14 20 20 20 21 27 27 24 21 21 21 19 20 Device 14 | . . . . . 14 20 20 20 19 18 18 19 21 21 21 20 20 Processor 12 | . . . 8 12 14 20 20 20 19 18 18 15 14 14 14 13 6 Hackware 2 | . . . . . . . . . . . . . 7 7 7 8 17 Energy Gun 12 | . 23 25 16 . 16 20 20 17 19 9 . 4 4 . . . . Energy Cannon 4 | . . . . 12 1 . . 1 . 4 9 9 9 10 7 9 13 Special Weapon 1 | . . . 7 . . . . . . . . . . 3 7 4 3 Naked Turns . | . . . . . . . . . . . . . . . . . . Heaviest Build 41 | 7 9 9 16 23 23 22 22 33 22 34 29 41 40 40 39 40 41 Greatest Support 47 | 20 20 9 19 24 41 41 41 41 41 41 41 41 41 41 41 47 47 Greatest Overweight (x) 1 | . . . . . . . . . . . . . . . . 1 . Average Overweight (x) . | . . . . . . . . . . . . . . . . . . Largest Inventory Capacity 5 | 1 1 1 2 4 4 4 4 4 4 4 4 4 4 4 4 4 5 Average Capacity 3 | . 1 1 1 3 4 4 4 4 4 4 4 4 4 4 4 4 4 Most Carried 5 | . 1 1 2 2 4 4 4 4 4 4 4 4 4 4 4 4 5 Average Carried 3 | . . 1 1 1 3 4 4 3 4 3 3 3 3 3 3 3 4 Final Capacity 5 | 1 1 1 2 4 4 4 4 4 4 4 4 4 4 4 4 4 5 Final Carried 5 | . 1 1 2 2 4 4 4 4 4 2 4 4 3 4 4 3 5 Class Distribution -------------------- 48% | Hacker-Scout 27% | Mutant 9% | Scavenger-Scout 7% | Scout 6% | Wizard-Scout Dominant Class ---------------- Mutant | -10/Materials Mutant | -10/Mines Mutant | -10/Exiles Mutant | -9/Mines Scavenger-Scout | -8/Materials Scout | -8/Garrison Hacker-Scout | -8/Materials Hacker-Scout | -8/Garrison Hacker-Scout | -7/Factory Hacker-Scout | -7/Garrison Hacker-Scout | -7/Factory Hacker-Scout | -7/Garrison Hacker-Scout | -6/Factory Hacker-Scout | -6/Lower Caves Hacker-Scout | -6/Data Miner Hacker-Scout | -5/Proximity Caves Wizard-Scout | -5/Factory Resources | -11 -10 -10 -10 -9 -8 -8 -8 -8 -7 -7 -7 -7 -6 -6 -6 -5 -5 ----------- Run | Scr Mat Min Exi Min Mat Gar Mat Gar Fac Gar Fac Gar Fac Low Dat Pro Fac Matter Collected 1068 | 148 199 13 . 24 161 50 10 60 . 83 . 80 70 15 . 80 75 Remotely . | . . . . . . . . . . . . . . . . . . Salvage Created 4410 | . 234 63 . . 1588 172 209 499 . 331 . 458 160 . . 240 456 Parts 256 | . 20 5 . . 71 8 19 35 . 11 4 20 8 8 . 23 24 Haulers Intercepted 2 | . 1 . . . 1 . . . . . . . . . . . . Recyclers Shooed . | . . . . . . . . . . . . . . . . . . Parts Field Recycled . | . . . . . . . . . . . . . . . . . . Retrieved Matter . | . . . . . . . . . . . . . . . . . . Parts Self-Destructed 18 | . . . . . . . . . . . . . . 7 . 11 . Prevented . | . . . . . . . . . . . . . . . . . . Kills | -11 -10 -10 -10 -9 -8 -8 -8 -8 -7 -7 -7 -7 -6 -6 -6 -5 -5 ------- Run | Scr Mat Min Exi Min Mat Gar Mat Gar Fac Gar Fac Gar Fac Low Dat Pro Fac Combat Hostiles Destroyed 122 | . 7 4 . . 31 3 4 16 . 15 2 14 1 1 . 14 10 Guns 49 | . 4 4 . . 18 3 4 7 . 4 . 5 . . . . . Cannons 31 | . . . . . 1 . . 2 . 3 2 5 1 1 . 7 9 AOE 39 | . 3 . . . 12 . . 7 . 6 . 3 . . . 7 1 Classes Destroyed 15 | . 7 . . . 3 . . 2 . 1 . . . 1 . . 1 Worker 3 | . 1 . . . 1 . . . . . . . . . . . 1 Builder 5 | . 2 . . . . . 2 . . . . . . . . . 1 Tunneler 1 | . . . . . 1 . . . . . . . . . . . . Hauler 2 | . 1 . . . 1 . . . . . . . . . . . . Recycler 1 | . . . . . 1 . . . . . . . . . . . . Operator 5 | . 1 . . . 2 . . . . . . . 1 . . . 1 Watcher 3 | . 1 . . . 1 . . . . . . . 1 . . . . Swarmer 48 | . 3 . . . 7 . . 4 . 8 . 7 . . . 12 7 Grunt 51 | . 4 4 . . 16 3 3 8 . 5 2 4 . . . . 2 Brawler 3 | . . . . . . . . . . 1 . 2 . . . . . Duelist 2 | . . . . . . . . 2 . . . . . . . . . Sentry 13 | . . . . . 8 . 1 . . 1 . 1 1 . . . 1 Hunter 2 | . . . . . . . . 2 . . . . . . . . . Programmer 3 | . . . . . . . . . . . . . . 1 . 2 . Master Thief 2 | . . . . . . . . . . . . . . . . . 2 Best Kill Streak 9 | . 4 2 . . 6 3 6 6 . 6 2 4 3 1 . 5 9 Combat Bots Only 7 | . 3 2 . . 6 3 4 6 . 6 2 4 1 1 . 5 7 Max Kills in Single Turn 4 | . 2 1 . . 3 1 1 3 . 2 1 4 1 1 . 3 2 Gunslinging . | . . . . . . . . . . . . . . . . . . Exploded 3 | . 1 . . . 3 . . 3 . 2 . 3 . . . 2 1 Melee . | . . . . . . . . . . . . . . . . . . Uniques/NPCs Destroyed 1 | . . . . . . . . . . . . . . . . 1 . Data Miner (-5/Proximity Caves) Combat | -11 -10 -10 -10 -9 -8 -8 -8 -8 -7 -7 -7 -7 -6 -6 -6 -5 -5 -------- Run | Scr Mat Min Exi Min Mat Gar Mat Gar Fac Gar Fac Gar Fac Low Dat Pro Fac Damage Taken 4952 | . 311 338 . . 1049 118 225 214 . 818 16 461 121 30 . 434 817 Core 4059 | . 255 284 . . 853 96 185 169 . 672 16 366 95 27 . 349 692 Absorbed by Shields 12 | . . . . . . . . . . 4 . 8 . . . . . Redirected to Core 3063 | . 183 175 . . 699 79 135 146 . 476 . 319 77 11 . 296 467 Core Remaining (%) 74 | 100 . . . 92 . . . 75 . . . 57 . . . 47 . Volleys Fired 304 | . 34 16 . . 56 5 14 24 . 29 8 49 10 2 4 29 24 Largest 2 | . 2 2 . . 2 2 2 2 . 2 1 1 1 1 1 1 2 Hottest 196 | . 80 80 . . 100 113 113 113 . 128 80 100 90 90 30 100 196 Shots Fired 464 | . 65 32 . . 99 10 27 40 . 47 8 49 10 2 4 29 42 Gun 320 | . 62 32 . . 91 10 27 34 . 38 . 24 2 . . . . Cannon 134 | . . . . . 8 . . 6 . 9 8 25 8 1 . 27 42 Launcher 3 | . 3 . . . . . . . . . . . . . . . . Special 7 | . . . . . . . . . . . . . . 1 4 2 . Kinetic 2 | . . . . . . . . . . 2 . . . . . . . Thermal 332 | . 62 32 . . 13 5 14 24 . 45 8 49 10 1 . 27 42 Explosive 3 | . 3 . . . . . . . . . . . . . . . . Electromagnetic 120 | . . . . . 86 5 13 16 . . . . . . . . . Robot Hit Streak 29 | . 9 6 . . 20 11 16 12 . 8 12 26 29 10 13 8 9 Robot Miss Streak 3 | . 2 1 . . 3 3 3 3 . 1 1 3 1 . . 2 1 Penetration Max . | . . . . . . . . . . . . . . . . . . Secondary Targets 9 | . . . . . 1 2 2 . . 4 . . . . . . . Max Gunslinging Chain 1 | . . . . . 1 1 1 . . 1 . . . . . . . Shots Hit Robots 346 | . 36 26 . . 82 7 21 31 . 37 7 40 10 2 3 19 25 Core Hits 235 | . 25 10 . . 64 7 11 26 . 19 4 27 4 1 . 17 20 Critical Hits 8 | . . . . . 1 . 1 2 . 4 . . . . . . . Critical Kills 3 | . . . . . . . 1 1 . 1 . . . . . . . Critical Parts Destroyed 5 | . . . . . 1 . . 1 . 3 . . . . . . . Melee Attacks . | . . . . . . . . . . . . . . . . . . Impact . | . . . . . . . . . . . . . . . . . . Slashing . | . . . . . . . . . . . . . . . . . . Piercing . | . . . . . . . . . . . . . . . . . . Sneak Attacks . | . . . . . . . . . . . . . . . . . . Combat Hostiles . | . . . . . . . . . . . . . . . . . . Follow-up Attacks . | . . . . . . . . . . . . . . . . . . Damage Inflicted 14617 | . 711 289 . . 3256 137 396 1503 . 2411 201 1449 326 37 . 2094 1807 Guns 4438 | . 441 289 . . 1524 137 396 588 . 497 . 510 56 . . . . Cannons 5047 | . . . . . 457 . . 325 . 926 201 685 270 37 . 1176 970 Explosions 5132 | . 270 . . . 1275 . . 590 . 988 . 254 . . . 918 837 Melee . | . . . . . . . . . . . . . . . . . . Ramming . | . . . . . . . . . . . . . . . . . . Kinetic . | . . . . . . . . . . . . . . . . . . Thermal 11579 | . 441 289 . . 1777 52 137 1175 . 2411 201 1449 326 37 . 2094 1190 Explosive 854 | . 270 . . . . . . . . . . . . . . . 584 Electromagnetic 2184 | . . . . . 1479 85 259 328 . . . . . . . . 33 Impact . | . . . . . . . . . . . . . . . . . . Slashing . | . . . . . . . . . . . . . . . . . . Piercing . | . . . . . . . . . . . . . . . . . . Highest Corruption 1 | . . . . . . . . . . . . . . . . 1 . Average Corruption 1 | . . . . . . . . . . . . . . . . 1 . Corruption Purged . | . . . . . . . . . . . . . . . . . . Overload Shots . | . . . . . . . . . . . . . . . . . . Overflow Damage 840 | . . . . . 96 . . 95 . 139 10 19 12 . . 264 205 Projectiles 457 | . . . . . 72 . . 65 . 85 10 19 12 . . 160 34 Explosions 383 | . . . . . 24 . . 30 . 54 . . . . . 104 171 Melee . | . . . . . . . . . . . . . . . . . . Knockbacks . | . . . . . . . . . . . . . . . . . . Impact . | . . . . . . . . . . . . . . . . . . Kinetic . | . . . . . . . . . . . . . . . . . . Secondary . | . . . . . . . . . . . . . . . . . . Self-Inflicted Damage 584 | . . . . . 166 . . . . . . . . . . 70 348 Shots 9 | . . . . . 4 . . . . . . . . . . 1 4 Rammed . | . . . . . . . . . . . . . . . . . . Targets Rammed . | . . . . . . . . . . . . . . . . . . Kicked . | . . . . . . . . . . . . . . . . . . Crushed . | . . . . . . . . . . . . . . . . . . Highest Temperature 355 | . 355 336 . . 334 168 36 18 . 89 47 70 72 39 . 70 109 Average Temperature 67 | . 97 154 . . 54 90 19 8 . 30 26 33 40 39 . 40 43 Received Heat Transfer 1458 | . 144 180 . . 333 63 117 99 . 279 9 165 24 . . . 45 Effects 1 | . 1 . . . . . . . . . . . . . . . . Energy Bleed 1 | . 1 . . . . . . . . . . . . . . . . Siege Activations . | . . . . . . . . . . . . . . . . . . Robots Corrupted . | . . . . . . . . . . . . . . . . . . Combat Hostiles . | . . . . . . . . . . . . . . . . . . Parts Fried 9 | . . . . . 7 . 1 1 . . . . . . . . . Impact Corruptions . | . . . . . . . . . . . . . . . . . . Robots Melted 3 | . . . . . . . . . . 2 . 1 . . . . . Combat Hostiles 3 | . . . . . . . . . . 2 . 1 . . . . . Parts Melted 28 | . 4 3 . . . . . 1 . 8 . 3 3 . . 5 1 Heat Transferred 14321 | . 1000 650 . . 1661 111 296 1115 . 2790 400 2411 525 50 . 2250 1062 Parts Sabotaged . | . . . . . . . . . . . . . . . . . . Parts Stolen 2 | . . . . . . . . . . . . . . . . 2 . Parts Stripped . | . . . . . . . . . . . . . . . . . . Power Chain Reactions 6 | . . . . . 5 . 1 . . . . . . . . . . Missiles Intercepted . | . . . . . . . . . . . . . . . . . . Alert | -11 -10 -10 -10 -9 -8 -8 -8 -8 -7 -7 -7 -7 -6 -6 -6 -5 -5 ------- Run | Scr Mat Min Exi Min Mat Gar Mat Gar Fac Gar Fac Gar Fac Low Dat Pro Fac Peak Influence 961 | . 315 222 . . 961 694 338 607 318 517 365 702 533 . . . 711 Average Influence 383 | . 119 177 . . 574 649 238 382 195 319 314 517 447 . . . 424 Maximum Alert Level 3 | . 1 1 . . 3 2 1 2 1 2 1 3 2 . . . 3 Low Security (%) 30 | 100 78 80 . 100 12 . 38 30 81 18 . . . . . . 28 Level 1 22 | . 21 19 . . 7 . 61 17 18 46 100 27 18 . . . 25 Level 2 39 | . . . . . 50 100 . 52 . 35 . 65 81 . . . 40 Level 3 7 | . . . . . 29 . . . . . . 7 . . . . 5 Level 4 . | . . . . . . . . . . . . . . . . . . Level 5 . | . . . . . . . . . . . . . . . . . . High Security . | . . . . . . . . . . . . . . . . . . Max Security . | . . . . . . . . . . . . . . . . . . Squads Dispatched 12 | . 2 . . . 4 . 1 . . . 1 . 1 . . . 3 Investigation 6 | . 2 . . . 2 . . . . . 1 . 1 . . . . Extermination . | . . . . . . . . . . . . . . . . . . Reinforcement 5 | . . . . . 2 . 1 . . . . . . . . . 2 Assault . | . . . . . . . . . . . . . . . . . . Garrison 1 | . . . . . . . . . . . . . . . . . 1 Intercept . | . . . . . . . . . . . . . . . . . . Construction Impeded 1 | . . . . . . . . . . . . . . . . . 1 Haulers Reinforced 1 | . . . . . . . . . . . . . . . . . 1 Stealth | -11 -10 -10 -10 -9 -8 -8 -8 -8 -7 -7 -7 -7 -6 -6 -6 -5 -5 --------- Run | Scr Mat Min Exi Min Mat Gar Mat Gar Fac Gar Fac Gar Fac Low Dat Pro Fac Distress Signals 5 | . 1 . . . 2 . . . . . . . 2 . . . . Communications Jammed . | . . . . . . . . . . . . . . . . . . Distress Signals . | . . . . . . . . . . . . . . . . . . Times Spotted 158 | . 8 4 . . 42 3 5 19 . 16 3 19 6 1 . 18 14 Peak Tracking Total 8 | . 4 2 . . 8 5 3 7 . 8 2 4 3 1 . 5 4 Tactical Retreats 15 | . . . . . 2 1 . 6 . 3 . 2 1 . . . . Traps | -11 -10 -10 -10 -9 -8 -8 -8 -8 -7 -7 -7 -7 -6 -6 -6 -5 -5 ------- Run | Scr Mat Min Exi Min Mat Gar Mat Gar Fac Gar Fac Gar Fac Low Dat Pro Fac Traps Triggered 20 | . 3 . . . . 3 . 6 . 4 . 4 . . . . . Indirectly . | . . . . . . . . . . . . . . . . . . Trap Hack Attempts . | . . . . . . . . . . . . . . . . . . Triggered . | . . . . . . . . . . . . . . . . . . Disarmed . | . . . . . . . . . . . . . . . . . . Reprogrammed . | . . . . . . . . . . . . . . . . . . Reused . | . . . . . . . . . . . . . . . . . . Traps Extracted . | . . . . . . . . . . . . . . . . . . Installed . | . . . . . . . . . . . . . . . . . . Triggered . | . . . . . . . . . . . . . . . . . . Machines | -11 -10 -10 -10 -9 -8 -8 -8 -8 -7 -7 -7 -7 -6 -6 -6 -5 -5 ---------- Run | Scr Mat Min Exi Min Mat Gar Mat Gar Fac Gar Fac Gar Fac Low Dat Pro Fac Machines Disabled 14 | . . . . . 5 . . . . . . 2 . . . . 7 Max in Single Turn 3 | . . . . . 1 . . . . . . 1 . . . . 3 Garrison Relay 2 | . . . . . . . . . . . . 2 . . . . . Machines Sabotaged . | . . . . . . . . . . . . . . . . . . Garrisons Compromised . | . . . . . . . . . . . . . . . . . . Overloaded Fab Kills . | . . . . . . . . . . . . . . . . . . Fab Network Shutdowns . | . . . . . . . . . . . . . . . . . . Hacking | -11 -10 -10 -10 -9 -8 -8 -8 -8 -7 -7 -7 -7 -6 -6 -6 -5 -5 --------- Run | Scr Mat Min Exi Min Mat Gar Mat Gar Fac Gar Fac Gar Fac Low Dat Pro Fac Machines Accessed 33 | . 7 . 1 . 9 . 2 . 4 . 2 . 2 . 4 . 2 Terminals 17 | . 5 . . . 5 . 1 . 3 . . . 1 . . . 2 Fabricators . | . . . . . . . . . . . . . . . . . . Repair Stations 1 | . . . . . 1 . . . . . . . . . . . . Recycling Units 5 | . 2 . . . 1 . . . . . 1 . 1 . . . . Scanalyzers 1 | . . . . . 1 . . . . . . . . . . . . Garrison Access 4 | . . . . . 1 . 1 . 1 . 1 . . . . . . Total Hacks 75 | . 16 . 1 . 14 . 5 . 8 . 2 . 2 . 23 . 4 Successful 51 | . 7 . 1 . 8 . 2 . 2 . 2 . 2 . 23 . 4 Failed 24 | . 9 . . . 6 . 3 . 6 . . . . . . . . Catastrophic 5 | . 1 . . . 2 . 2 . . . . . . . . . . Database Lockouts . | . . . . . . . . . . . . . . . . . . Manual 36 | . 13 . 1 . 7 . 4 . 7 . 1 . 2 . . . 1 Terminals 37 | . 13 . . . 8 . 4 . 7 . . . 1 . . . 4 Fabricators . | . . . . . . . . . . . . . . . . . . Repair Stations 3 | . . . . . 3 . . . . . . . . . . . . Recycling Units 6 | . 3 . . . 1 . . . . . 1 . 1 . . . . Scanalyzers 1 | . . . . . 1 . . . . . . . . . . . . Garrison Access 4 | . . . . . 1 . 1 . 1 . 1 . . . . . . Terminal Hacks 38 | . 5 . 1 . 2 . 1 . 1 . . . 1 . 23 . 4 Record 12 | . . . . . . . . . . . . . . . 11 . 1 Part Schematic 5 | . . . . . . . . . . . . . . . 5 . . Robot Schematic 4 | . . . . . . . . . . . . . . . 4 . . Robot Analysis 1 | . . . . . 1 . . . . . . . . . . . . Prototype ID Bank 5 | . 2 . . . . . . . . . . . . . 3 . . Branch Access Points 3 | . 1 . . . . . . . . . . . 1 . . . 1 Recycling Unit Index 1 | . 1 . . . . . . . . . . . . . . . . Garrison Index 1 | . . . . . . . . . . . . . . . . . 1 Unreport Threat 2 | . . . . . . . 1 . 1 . . . . . . . . Recall Investigation 1 | . 1 . . . . . . . . . . . . . . . . Zone Layout 2 | . . . . . 1 . . . . . . . . . . . 1 EX-Prototype ID Bank 1 | . . . 1 . . . . . . . . . . . . . . Fabricator Hacks . | . . . . . . . . . . . . . . . . . . Repair Station Hacks 1 | . . . . . 1 . . . . . . . . . . . . Scan Component 1 | . . . . . 1 . . . . . . . . . . . . Recycling Unit Hacks . | . . . . . . . . . . . . . . . . . . Scanalyzer . | . . . . . . . . . . . . . . . . . . Garrison Access Hacks 4 | . . . . . 1 . 1 . 1 . 1 . . . . . . Unlock Access 4 | . . . . . 1 . 1 . 1 . 1 . . . . . . Unauthorized Hacks 17 | . 5 . . . 8 . . . . . 2 . 2 . . . . Terminals 2 | . . . . . 2 . . . . . . . . . . . . Track 1 | . . . . . 1 . . . . . . . . . . . . Botnet 1 | . . . . . 1 . . . . . . . . . . . . Fabricators . | . . . . . . . . . . . . . . . . . . Repair Stations . | . . . . . . . . . . . . . . . . . . Recycling Units 5 | . 2 . . . 1 . . . . . 1 . 1 . . . . Tunnel 5 | . 2 . . . 1 . . . . . 1 . 1 . . . . Scanalyzers 1 | . . . . . 1 . . . . . . . . . . . . Extract 1 | . . . . . 1 . . . . . . . . . . . . Garrison Access . | . . . . . . . . . . . . . . . . . . Data Cores Recovered 3 | . 1 . . . . . . . . . . . 1 . . . 1 Used . | . . . . . . . . . . . . . . . . . . Hacking Detections 15 | . 3 . . . 5 . 1 . 4 . . . 1 . . . 1 Full Trace Events . | . . . . . . . . . . . . . . . . . . Feedback Events . | . . . . . . . . . . . . . . . . . . Feedback Blocked . | . . . . . . . . . . . . . . . . . . Robot Schematics Acquired 4 | . . . . . . . . . . . . . . . 4 . . Robots Built . | . . . . . . . . . . . . . . . . . . Matter . | . . . . . . . . . . . . . . . . . . Time . | . . . . . . . . . . . . . . . . . . Total Robot Build Rating . | . . . . . . . . . . . . . . . . . . Part Schematics Acquired 13 | . . . . . 8 . . . . . . . . . 5 . . Parts Built . | . . . . . . . . . . . . . . . . . . Matter . | . . . . . . . . . . . . . . . . . . Time . | . . . . . . . . . . . . . . . . . . Total Part Build Rating . | . . . . . . . . . . . . . . . . . . Parts Repaired . | . . . . . . . . . . . . . . . . . . Time . | . . . . . . . . . . . . . . . . . . Parts Recycled . | . . . . . . . . . . . . . . . . . . Recycled Matter . | . . . . . . . . . . . . . . . . . . Retrieved Matter . | . . . . . . . . . . . . . . . . . . Retrieved Components . | . . . . . . . . . . . . . . . . . . Parts Scanalyzed . | . . . . . . . . . . . . . . . . . . Part Schematics Acquired . | . . . . . . . . . . . . . . . . . . Parts Damaged . | . . . . . . . . . . . . . . . . . . Bothacking | -11 -10 -10 -10 -9 -8 -8 -8 -8 -7 -7 -7 -7 -6 -6 -6 -5 -5 ------------ Run | Scr Mat Min Exi Min Mat Gar Mat Gar Fac Gar Fac Gar Fac Low Dat Pro Fac Used RIF Installer 4 | . . . . . . 1 . 1 . 1 . 1 . . . . . Coupler Efficiency 1 | . . . . . . . . 1 . . . . . . . . . Robot Detection 1 | . . . . . . . . . . . . 1 . . . . . Patrol Navigation 1 | . . . . . . . . . . 1 . . . . . . . Robots Hacked 2 | . . . . . . . . . . . . . . 1 1 . . Non-combat 1 | . . . . . . . . . . . . . . 1 . . . Combat 1 | . . . . . . . . . . . . . . . 1 . . Robot Hacks Applied 3 | . . . . . . . . . . . . . . 1 2 . . parse_system 3 | . . . . . . . . . . . . . . 1 2 . . Relay Couplers Released 4 | . . . . . . . . . . . . 4 . . . . . Machine Destruction 4 | . . . . . . . . . . . . 4 . . . . . Attached 3 | . . . . . . . . . . . . . 2 . . . 1 Robots Rewired . | . . . . . . . . . . . . . . . . . . Allies Hacked . | . . . . . . . . . . . . . . . . . . Hacks Repelled . | . . . . . . . . . . . . . . . . . . Allies | -11 -10 -10 -10 -9 -8 -8 -8 -8 -7 -7 -7 -7 -6 -6 -6 -5 -5 -------- Run | Scr Mat Min Exi Min Mat Gar Mat Gar Fac Gar Fac Gar Fac Low Dat Pro Fac Total Allies 3 | . . . . . . . . . . . . . . . 1 2 . Largest Group 2 | . . . . . . . . . . . . . . . 1 2 2 Highest-Rated Group 123 | . . . . . . . . . . . . . . . 59 123 123 Highest-Rated Ally 64 | . . . . . . . . . . . . . . . 59 64 64 Total Orders 2 | . . . . . . . . . . . . . . . 1 1 . FOLLOW 2 | . . . . . . . . . . . . . . . 1 1 . Ally Attacks . | . . . . . . . . . . . . . . . . . . Total Damage . | . . . . . . . . . . . . . . . . . . Kills . | . . . . . . . . . . . . . . . . . . Allies Corrupted . | . . . . . . . . . . . . . . . . . . Allies Melted . | . . . . . . . . . . . . . . . . . . Field Lobotomies 3 | . . . . . . . . . . . . . . . 1 2 . Intel | -11 -10 -10 -10 -9 -8 -8 -8 -8 -7 -7 -7 -7 -6 -6 -6 -5 -5 ------- Run | Scr Mat Min Exi Min Mat Gar Mat Gar Fac Gar Fac Gar Fac Low Dat Pro Fac Robot Analysis Total 116 | . . . . . 1 . . . . . . . . . 115 . . Derelict Logs Recovered 2 | . . 1 . . . . . . . . . . . . . 1 . Drone Launches . | . . . . . . . . . . . . . . . . . . Drone Recoveries . | . . . . . . . . . . . . . . . . . . Exploration | -11 -10 -10 -10 -9 -8 -8 -8 -8 -7 -7 -7 -7 -6 -6 -6 -5 -5 ------------- Run | Scr Mat Min Exi Min Mat Gar Mat Gar Fac Gar Fac Gar Fac Low Dat Pro Fac Turns Passed 3776 | 56 379 240 166 43 682 121 85 386 66 266 83 407 175 85 82 278 176 Spaces Moved 5273 | 65 408 409 400 75 856 187 96 500 161 412 154 448 260 167 112 348 215 Core 11 | 10 . . . . . . . . 1 . . . . . . . . Treads . | . . . . . . . . . . . . . . . . . . Legs . | . . . . . . . . . . . . . . . . . . Wheels 172 | 55 117 . . . . . . . . . . . . . . . . Hover 118 | . 118 . . . . . . . . . . . . . . . . Flight 4972 | . 173 409 400 75 856 187 96 500 160 412 154 448 260 167 112 348 215 Fastest Speed 34 | 50 40 40 40 40 37 37 37 37 34 34 34 34 34 34 34 34 34 Average Speed 38 | 75 57 40 40 40 38 37 37 37 35 34 34 34 34 34 34 37 34 Slowest Speed 117 | 80 80 40 40 40 40 37 37 37 50 34 34 34 34 34 34 117 37 Overloaded Moves . | . . . . . . . . . . . . . . . . . . Propulsion Burnouts . | . . . . . . . . . . . . . . . . . . Robots Hopped 20 | . 1 8 . . 1 . . . 1 . . . 4 2 . . 3 Cave-ins Triggered . | . . . . . . . . . . . . . . . . . . Exploration Rate (%) 38 | 4 59 59 67 16 69 27 15 58 8 69 3 64 12 33 69 46 7 Regions Visited 17 Branch Regions 6 Pre-discovered Areas 28 | . 2 1 . . 1 . . . . . 1 . 1 . 22 . . Known Exits Taken 9 | . 1 . . . 1 . 1 . 1 . 1 . 1 1 1 1 . Unknown Exits Taken 4 | 1 . 1 1 1 . . . . . . . . . . . . . Scrap Searched 6 | . . 1 . 1 . . . . . . . . . 1 . 3 . Spaces Dug 88 | . . . . . . . . . . . . . . . . 42 46 Terrain Destroyed 597 | . 25 . . . 115 . 3 69 . 101 . 25 . . . 172 87 Melee . | . . . . . . . . . . . . . . . . . . Projectile 21 | . . . . . 3 . . 1 . . . . . . . 8 9 AOE 576 | . 25 . . . 112 . 3 68 . 101 . 25 . . . 164 78 Actions | -11 -10 -10 -10 -9 -8 -8 -8 -8 -7 -7 -7 -7 -6 -6 -6 -5 -5 --------- Run | Scr Mat Min Exi Min Mat Gar Mat Gar Fac Gar Fac Gar Fac Low Dat Pro Fac Total 6476 | 69 484 445 405 88 1087 227 118 649 167 487 178 660 334 191 152 450 285 Wait 555 | . 15 15 . 9 121 18 1 64 1 8 2 103 62 17 33 54 32 Move 5212 | 64 405 392 399 74 853 185 95 498 158 410 153 446 251 162 111 347 209 Hop 20 | . 1 8 . . 1 . . . 1 . . . 4 2 . . 3 Pick Up 31 | . 2 . 1 2 7 . . 4 . . . 7 . 1 1 2 4 Fast Attach 45 | 5 5 . 2 . 15 1 . 3 4 1 1 1 1 . . 3 3 Attach 24 | . 1 . . 1 3 . . 4 . 2 . 5 2 . 1 2 3 Detach 3 | . . . . . . . . . . 1 1 1 . . . . . Swap 14 | . 2 1 . . 1 . 1 . . . . 3 2 1 1 2 . Drop 49 | . 2 1 3 2 14 1 1 7 3 2 . 4 2 . 1 3 3 Fire 304 | . 34 16 . . 56 5 14 24 . 29 8 49 10 2 4 29 24 Melee . | . . . . . . . . . . . . . . . . . . Ram . | . . . . . . . . . . . . . . . . . . Kick . | . . . . . . . . . . . . . . . . . . Crush . | . . . . . . . . . . . . . . . . . . Escape Stasis 81 | . . . . . . 10 . 20 . 28 . 23 . . . . . Rewire . | . . . . . . . . . . . . . . . . . . Trap . | . . . . . . . . . . . . . . . . . . Miscellaneous 138 | . 17 12 . . 16 7 6 25 . 6 13 18 . 6 . 8 4 Route ------- -11/Scrapyard -10/Materials (discovered 3 exits: [*Mat x2] / *Min) -10/Mines (discovered 3 exits: [*Mat x2] / *Exi) -10/Exiles -9/Mines -8/Materials (discovered 2 exits: *Fac / Gar) -8/Garrison -8/Materials -8/Garrison (discovered 3 exits: *Fac x3) -7/Factory -7/Garrison (discovered 3 exits: *Fac x3) -7/Factory -7/Garrison (discovered 3 exits: *Fac x3) -6/Factory (discovered 2 exits: *Low x2) -6/Lower Caves -6/Data Miner -5/Proximity Caves -5/Factory (discovered 3 exits: *Fac / Upp x2) History --------- Turn | Location | Event 2 | -11/Scrapyard | Discovered new exit (range 16) 13 | -11/Scrapyard | Upgraded with Propulsion slot (x1) 13 | -11/Scrapyard | Upgraded with Utility slot (x2) 13 | -11/Scrapyard | Upgraded with Weapon slot (x1) 57 | -11/Scrapyard | Entered Materials 260 | -10/Materials | Discovered new exit (range 3) 311 | -10/Materials | Discovered new exit (range 15) 333 | -10/Materials | Build established: Mutant 403 | -10/Materials | Identified exit to Mines 436 | -10/Materials | Entered Mines 438 | -10/Mines | Reached level 2 493 | -10/Mines | Learned location of Zion (-7) 529 | -10/Mines | Discovered new exit (range 15) 591 | -10/Mines | Discovered new exit (range 4) 675 | -10/Mines | Deemed a non-threat by the Exiles lab entrance 675 | -10/Mines | Discovered new exit (range 5) 676 | -10/Mines | Entered Exiles 687 | -10/Exiles | Met 8R-AWN 693 | -10/Exiles | Met EX-HEX 705 | -10/Exiles | Met EX-BIN 711 | -10/Exiles | Aligned with FarCom system 711 | -10/Exiles | Given EX-Vault access code 722 | -10/Exiles | Opened EX-Vault 726 | -10/Exiles | Found YOLO Cannon 729 | -10/Exiles | Found Modified TNC 731 | -10/Exiles | Found Field Lobotomy Kit 740 | -10/Exiles | Warned to stay clear of 0b10 Research branches 772 | -10/Exiles | Met EX-DEC 838 | -10/Exiles | Discovered new exit (range 10) 842 | -10/Exiles | Stole three prototypes: YOLO Cannon, Modified TNC, Field Lobotomy Kit 842 | -10/Exiles | Entered Mines 844 | -9/Mines | Reached level 3 864 | -9/Mines | Met a Derelict bent on vengeance 878 | -9/Mines | Discovered new exit (range 15) 885 | -9/Mines | Entered Materials 887 | -8/Materials | Reached level 4 888 | -8/Materials | Upgraded with Power slot (x1) 888 | -8/Materials | Upgraded with Utility slot (x1) 920 | -8/Materials | Discovered new exit (range 16) 1003 | -8/Materials | Reached level 5 1193 | -8/Materials | Core integrity fell below 50% 1198 | -8/Materials | Reached level 6 1252 | -8/Materials | Identified exit to Factory 1454 | -8/Materials | Build established: Scavenger-Scout 1464 | -8/Materials | Core integrity fell below 20% 1499 | -8/Materials | Reached level 7 1566 | -8/Materials | Identified exit to Garrison 1567 | -8/Materials | Entered Garrison 1569 | -8/Garrison | Installed Relay Interface Framework 1644 | -8/Garrison | Reached level 8 1685 | -8/Garrison | Discovered new exit (range 8) 1687 | -8/Garrison | Identified exit to Materials 1688 | -8/Garrison | Entered Materials 1773 | -8/Materials | Identified exit to Garrison 1773 | -8/Materials | Entered Garrison 1796 | -8/Garrison | Triggered checkpoint 1852 | -8/Garrison | Discovered exit to Factory (range 13) 1872 | -8/Garrison | Triggered checkpoint 1876 | -8/Garrison | Triggered checkpoint 1884 | -8/Garrison | Discovered exit to Factory (range 15) 1944 | -8/Garrison | Triggered checkpoint 1954 | -8/Garrison | Reached level 9 1987 | -8/Garrison | Build established: Hacker-Scout 2114 | -8/Garrison | Triggered checkpoint 2148 | -8/Garrison | Discovered exit to Factory (range 9) 2154 | -8/Garrison | Expanded RIF knowledge: Coupler Efficiency 2159 | -8/Garrison | Entered Factory 2161 | -7/Factory | FarCom data flow suspended 2161 | -7/Factory | Reached level 10 2193 | -7/Factory | Upgraded with Propulsion slot (x1) 2224 | -7/Factory | Identified exit to Garrison 2225 | -7/Factory | Entered Garrison 2227 | -7/Garrison | Reached level 11 2297 | -7/Garrison | Discovered new exit (range 9) 2328 | -7/Garrison | Triggered checkpoint 2354 | -7/Garrison | Core integrity fell below 50% 2371 | -7/Garrison | Reached level 12 2409 | -7/Garrison | Discovered new exit (range 15) 2420 | -7/Garrison | Core integrity fell below 20% 2483 | -7/Garrison | Discovered new exit (range 12) 2487 | -7/Garrison | Identified exit to Factory 2490 | -7/Garrison | Expanded RIF knowledge: Patrol Navigation 2491 | -7/Garrison | Entered Factory 2574 | -7/Factory | Identified exit to Garrison 2574 | -7/Factory | Entered Garrison 2590 | -7/Garrison | Triggered checkpoint 2602 | -7/Garrison | Reached level 13 2613 | -7/Garrison | Upgraded with Weapon slot (x1) 2625 | -7/Garrison | Discovered new exit (range 11) 2645 | -7/Garrison | Spotted B-75 Beast 2645 | -7/Garrison | Spotted B-75 Beast 2763 | -7/Garrison | Garrison Relay disabled 2763 | -7/Garrison | Reached level 14 2764 | -7/Garrison | Upgraded with Utility slot (x1) 2832 | -7/Garrison | Discovered new exit (range 16) 2885 | -7/Garrison | Triggered checkpoint 2897 | -7/Garrison | Discovered new exit (range 15) 2902 | -7/Garrison | Identified exit to Factory 2904 | -7/Garrison | Expanded RIF knowledge: Robot Detection 2918 | -7/Garrison | Garrison Relay disabled 2928 | -7/Garrison | Triggered checkpoint 2981 | -7/Garrison | Entered Factory 2983 | -6/Factory | Reached level 15 2983 | -6/Factory | Upgraded with Utility slot (x1) 3020 | -6/Factory | Spotted B-75 Beast 3111 | -6/Factory | Identified exit to Lower Caves 3155 | -6/Factory | Core integrity fell below 50% 3156 | -6/Factory | Entered Lower Caves 3157 | -6/Lower Caves | Encountered a Warlord checkpoint 3170 | -6/Lower Caves | Reached level 16 3230 | -6/Lower Caves | A Derelict revealed a hidden shortcut to meet someone special 3232 | -6/Lower Caves | Identified exit to Data Miner 3241 | -6/Lower Caves | Entered Data Miner 3241 | -6/Data Miner | Discovered new exit (range 6) 3248 | -6/Data Miner | Met Data Miner 3257 | -6/Data Miner | Learned location of Section 7 (-3) 3257 | -6/Data Miner | Acquired the access code to Warlord's prototype stash 3262 | -6/Data Miner | Received God Mode back door access code from Data Miner 3290 | -6/Data Miner | Assimilated Data Miner with FLK Orb 3295 | -6/Data Miner | Reached level 17 3295 | -6/Data Miner | Interfaced with the Data Conduit 3310 | -6/Data Miner | Identified exit to Proximity Caves 3323 | -6/Data Miner | Entered Proximity Caves 3323 | -5/Proximity Caves | Accompanied by 1 ally 3325 | -5/Proximity Caves | Reached level 18 3326 | -5/Proximity Caves | Learned Factory emergency access door positions 3424 | -5/Proximity Caves | Destroyed Data Miner 3428 | -5/Proximity Caves | Found System Mapper 3489 | -5/Proximity Caves | Reached level 19 3511 | -5/Proximity Caves | Spotted GF-BWV(f) 3512 | -5/Proximity Caves | Encountered a Master Thief 3519 | -5/Proximity Caves | YOLO Cannon stolen by Master Thief 3537 | -5/Proximity Caves | Upgraded with Utility slot (x1) 3569 | -5/Proximity Caves | Spotted F5-LBC(f) 3570 | -5/Proximity Caves | Encountered a Master Thief 3570 | -5/Proximity Caves | Spotted QN-XWC(f) 3571 | -5/Proximity Caves | Encountered a Master Thief 3576 | -5/Proximity Caves | Assimilated QN-XWC(f) with FLK Orb 3578 | -5/Proximity Caves | Assimilated F5-LBC(f) with FLK Orb 3588 | -5/Proximity Caves | Discovered new exit (range 20) 3596 | -5/Proximity Caves | Identified exit to Factory 3601 | -5/Proximity Caves | Entered Factory 3601 | -5/Factory | Accompanied by 2 allies 3602 | -5/Factory | Core integrity fell below 50% 3603 | -5/Factory | Loaded intel: 252 machine locations 3603 | -5/Factory | Reached level 20 3617 | -5/Factory | Discovered new exit (range 20) 3619 | -5/Factory | Identified exit to Upper Caves 3651 | -5/Factory | Destroyed F5-LBC(f) 3651 | -5/Factory | Destroyed QN-XWC(f) 3660 | -5/Factory | Identified exit to Factory 3699 | -5/Factory | Garrison activated, responded to threat 3702 | -5/Factory | Core integrity fell below 20% 3740 | -5/Factory | Destroyed 7 combat bots 3768 | -5/Factory | Reached level 21 3777 | -5/Factory | Destroyed self via exploding Power Conduit Last Messages --------------- U-05 Engineer lays Concrete. G-50 Soldier destroyed. U-05 Engineer lays Concrete. R-10 Processor collects Carbon-fiber Leg. U-05 Engineer lays Concrete. R-10 Processor collects Lgt. Angular Momentum Engine. U-05 Engineer lays Concrete. Slug penetrates Wall. U-05 Engineer lays Concrete. Reached level 21. G-50 Soldier destroyed. U-05 Engineer lays Concrete. Slug penetrates Wall. U-05 Engineer destroyed. R-10 Processor collects Terrain Scanner. H-66 Slayer destroyed. Slug penetrates Power Conduit. R-10 Processor collects Wheel. Power Conduit explodes. Destroyed Phase Shifter. Map ----- +----------------------------------------------------+ | # ######"########## # ??????????????? | | # ##### ####### ? #???????????????? | | # ##### T ####### ? #???????????????? | | # "" ####### ?#???????????????? | | ############# #####?# ? ????????????????? | | ############# [ ####?########+#????????????????? | | ######## ############ ? ??????????????? | | ######## ############ ?? ?????????? | | ## # ############ ?? ??????????? | | #### ## # ############ ?# ???????? | | #### ## # ############ # ??????? | | #### ######################### #????? | | #### * # ########################? #????? | | # * [*# ############ ##### ?#? ?? | | # ########### """ #####? ## ??? | | # # [ ########### """ ##### ## ? | | # # # #### """ ##### ## ? | | # # # ##"" #### #####? ## ? | | + # ##"" " #### """ ##### ?# | | # # # ##G " #### """ + ###### | | # ### # ##"" " + + """ ##### ## ? | | # u #"" #### ####### ## ? | | # # ########;########## ## """ | | # # # ^ ^ ######## ## """ | | ########+## # ; % ######## ## """ | | #### ? ## A# ;@ R "######## ##? "" | | # ## u# h R % "######## ## "" | | # ## %+ h ; R^ "######## ## ? | | # """" ## # ; R ^ ########+###### | | ? # """" ## # ; R # ? ##### | | ?### """" ## ######## # # | | #?#?? """" # ####### # # """ | | ?### # ####### # # """ | | #### ? # + # """ | | #?###?####### ############ %# # | | ??####?###### u ############ ; * # | | ? ###?###### ############### ## !# | | ######?### # ##### ############?? | | ? ? #?######## # ##### ############ ? | | ?""" #??####?## # ##### ###############? | | ?""" ?? ?? # # ##### ###### ?? | | ?"""?#"""" ? # ##+########### [##### ?? | | ??? ?"""" ? # ########### " ? ? """"? | | ?"""?#"""" #### ########### "T u ?""""? | | ?"""??"""" #### ########### u """"? | | ?"""??"""" ?? #### ########### ####?? ? ? ??? | | ??????""""? #??# ####?######## ####### ??? ? ??? | | ??????""""???????#?##???#??##### #######?# ?"""??? | | ??????????????????? ? ?????? #?#???#??? "T???? | | ???????????????????????"""?????? ???#???#???"""??? | +----------------------------------------------------+ Best States ------------- Heat Dissipation 98 Energy Generation 41 Energy Capacity 310 Matter Stores 300 Matter Capacity 300 Sight Range 17 Robot Scan Range 24 Terrain Scan Range 20 Terrain Scan Density 810 Additional Mass Support 9 Weapon Cycling 15 Evasion (%) 63 Offensive Hacking 45 Defensive Hacking 15 Item Schematics ----------------- Imp. Terrain Scanner | -8/Materials | Extracted Arm. Treads | -8/Materials | Extracted Field Recycling Unit | -8/Materials | Extracted Assault Rifle | -8/Materials | Extracted Hvy. Mace | -8/Materials | Extracted Prc. Beam Rifle | -8/Materials | Extracted Wheel | -8/Materials | Extracted Ion Cannon | -8/Materials | Extracted Combat Drone Bay | -6/Data Miner | Free Lgt. Regenerative Plating | -6/Data Miner | Free Cmb. Gravmag System | -6/Data Miner | Free Exp. Terrain Scanner | -6/Data Miner | Free Tactical Coordination Suite | -6/Data Miner | Free Robot Schematics ------------------ S-27 Virus | -6/Data Miner | Free G-50 Soldier | -6/Data Miner | Free I-36 Angel | -6/Data Miner | Free I-47 Archangel | -6/Data Miner | Free Fabricated ------------ Nothing Alien Tech Used ----------------- None Achievements -------------- None Challenges ------------ None RPGLIKE | -11 -10 -10 -10 -9 -8 -8 -8 -8 -7 -7 -7 -7 -6 -6 -6 -5 -5 --------- Run | Scr Mat Min Exi Min Mat Gar Mat Gar Fac Gar Fac Gar Fac Low Dat Pro Fac Levels Raised 20 | . . 1 . 1 4 1 . 1 1 2 . 2 1 1 1 2 2 XP Earned 33067 | 3000 1325 1000 350 500 6293 1216 500 2196 1500 2565 400 2177 1931 650 2150 2630 2684 XP Spent 29640 | 2550 100 . 1000 2150 3260 . 4145 . 3230 1500 1100 3000 1700 . . 3380 2525 Upgrades 78 | 5 1 . 3 3 15 . 11 . 7 12 5 3 1 . . 7 5 Power Slot 1 | . . . . . 1 . . . . . . . . . . . . Propulsion Slot 2 | 1 . . . . . . . . 1 . . . . . . . . Utility Slot 6 | 2 . . . . 1 . . . . . . 1 1 . . 1 . Weapon Slot 2 | 1 . . . . . . . . . . . 1 . . . . . Core Integrity 12 | . . . . . 4 . . . . 2 4 . . . . 2 . Heat Dissipation 9 | . . . . . . . 2 . 3 . . . . . . 2 2 Energy Generation 2 | . . . . . . . . . . . . . . . . 1 1 Mass Support 5 | . 1 . 2 1 . . . . . . . . . . . 1 . Inventory Capacity 5 | 1 . . 1 2 . . . . . . . . . . . . 1 Sight Range 1 | . . . . . . . . . . 1 . . . . . . . Sensor Range 12 | . . . . . 8 . 2 . . 1 . . . . . . 1 Terrain Scan Density 8 | . . . . . . . . . . 8 . . . . . . . Ranged Accuracy 5 | . . . . . 1 . . . 2 . 1 1 . . . . . Hack Attack % 5 | . . . . . . . 4 . 1 . . . . . . . . Hack Defense % 3 | . . . . . . . 3 . . . . . . . . . . Protomatter Created 1525 | . 128 133 . . 263 50 102 233 . 141 94 177 . 48 . 70 86 Integrity Restored 2934 | . 344 255 . . 316 150 126 561 . 102 282 402 . 144 . 162 90 Core 2829 | . 239 255 . . 316 150 126 561 . 102 282 402 . 144 . 162 90 Parts 105 | . 105 . . . . . . . . . . . . . . . . Protomatter Decayed 277 | . . 48 . . 83 . 60 37 . 49 . . . . . . . Game ------ Seed MassCompactSegregator Manual? 0 Play Time 01:04:53 Cumulative 70.2 hours Start 2019.12.17 @ 06:07:29 End 2019.12.17 @ 07:08:09 Sessions 1 Manual Loads 0 Difficulty Rogue Special Mode Winter2019/RPGLIKE Game No. 184 Rogue 184 Adventurer 0 Explorer 0 Win Type - Total 1 Types 1/0/0/0/0/0/0 Lore% 66 Gallery% 64 Achievement% 52 Wizard Run 0 Options --------- ASCII 0 Keyboard 0 Movement Numpad Keybinds 0 Fullscreen 1 Font 24/Smallcaps Map View 76x50 Tactical HUD 0 Map Filters NONE Filters NONE Steam 1 RUN: 4cda4a33-7ef3-4f40-ba93-4b8703d899e3